Workbook

Sheet цены на металлочерепицу GL
A7: Профилированная продукция Grand Line
AC8: цены действительны с | AD8: 2017-08-28
A9: Наименование профиля | B9: Ширина профиля общаяя / полезная, мм | C9: Длина, минимальная/ максимальная, м | D9: Цена, руб./кв.м.
D10: Design | G10: Premium | L10: GreenCoat Pural®, Pural Matt | M10: Polydexter ® | N10: Standart + | P10: Optima | W10: Дачный | X10: Цинк
D11: Colority® Print dp | E11: Colority® Print | F11: Safari® | G11: Quarzit Matt | H11: Quarzit | I11: Quarzit lite | J11: Velur® | K11: Atlas® | N11: Drap® | O11: Satin® | P11: PE двс | Q11: PE | W11: PE | X11: Zn
A12: Защитный слой, гр/кв.м. | D12: Zn 200 | E12: Zn 200 | F12: Zn 200-275 | G12: ZA 265 | H12: ZA 265 | I12: ZA 265 | J12: ZA 265 | K12: ZA 265 | L12: Zn275 | M12: Zn275 | N12: Zn 140 | O12: Zn 140 | P12: Zn 140 | Q12: Zn 100 | X12: Zn 80-140 | AC12: Zn 140-180
A13: Толщина металла, мм/покрытия, мкм | D13: 0,45/30 | E13: 0,45/30 | F13: 0,45-0,5/30 | G13: 0,5/50 | H13: 0,5/55 | I13: 0,5/25 | J13: 0,5/35 | K13: 0,5/25 | L13: 0,5/50 | M13: 0,5/25-27 | N13: 0,45/25 | O13: 0,5/25 | P13: 0,45/25 | Q13: 0.8 | R13: 0.7 | S13: 0,65*** | T13: 0.45 | U13: 0.4 | V13: 0.35 | X13: 0.35 | Y13: 0.4 | Z13: 0.45 | AA13: 0.5 | AB13: 0.55 | AC13: 0.7 | AD13: 0.8 | AE13: 0.9
A14: Письменная гарантия Grand Line | D14: 20 лет | E14: 20 лет | F14: 20 лет | G14: 35 лет | H14: 35 лет | I14: 30 лет | J14: 20 лет | K14: 20 лет | L14: 30 лет | M14: 20 лет | N14: 15 лет | O14: 15 лет | P14: 10 лет | Q14: 10 лет | R14: 10 лет | S14: 10 лет | T14: 10 лет | U14: 2 года | V14: 2 года | W14: 1 год | X14: 6 месяцев | AC14: 6 месяцев
A15: Металлочерепица, фальцевая кровля и софит металлический
A16: Kamea | B16: 1,18/1,085 | C16: 0,5/6,5 | D16: - | E16: =ROUND(636*Belarus*(1-B25),2) -> 559.68 | F16: =ROUND(611*Belarus*(1-B25),2) -> 537.68 | G16: =ROUND(682*Belarus*(1-B25),2) -> 600.16 | H16: =ROUND(682*Belarus*(1-B25),2) -> 600.16 | I16: =ROUND(544*Belarus*(1-B25),2) -> 478.72 | J16: =ROUND(535*Belarus*(1-B25),2) -> 470.8 | K16: =ROUND(470*Belarus*(1-B25),2) -> 413.6 | L16: =ROUND(700*Belarus*(1-D25),2) -> 630 | M16: =ROUND(451*Belarus*(1-F25),2) -> 405.9 | N16: =ROUND(414*Belarus*(1-H25),2) -> 364.32 | O16: =ROUND(374*Belarus*(1-I25),2) -> 329.12 | P16: - | Q16: - | R16: - | S16: - | T16: =ROUND(342*Belarus*(1-N25),2) -> 300.96 | U16: - | V16: - | W16: - | X16: - | Y16: - | Z16: - | AA16: - | AB16: - | AC16: - | AD16: - | AE16: -
A17: Kvinta plus | B17: 1,21/1,15 | C17: 0,5/6,5 | D17: - | E17: =ROUND(646*Belarus*(1-B25),2) -> 568.48 | F17: =ROUND(621*Belarus*(1-B25),2) -> 546.48 | G17: =ROUND(692*Belarus*(1-B25),2) -> 608.96 | H17: =ROUND(692*Belarus*(1-B25),2) -> 608.96 | I17: =ROUND(554*Belarus*(1-B25),2) -> 487.52 | J17: =ROUND(545*Belarus*(1-B25),2) -> 479.6 | K17: =ROUND(480*Belarus*(1-B25),2) -> 422.4 | L17: =ROUND(710*Belarus*(1-D25),2) -> 639 | M17: =ROUND(461*Belarus*(1-F25),2) -> 414.9 | N17: =ROUND(424*Belarus*(1-H25),2) -> 373.12 | O17: =ROUND(384*Belarus*(1-I25),2) -> 337.92 | P17: - | Q17: - | R17: - | S17: - | T17: =ROUND(352*Belarus*(1-N25),2) -> 309.76 | U17: - | V17: - | W17: - | X17: - | Y17: - | Z17: - | AA17: - | AB17: - | AC17: - | AD17: - | AE17: -
A18: Kredo | B18: 1,19/1,125 | C18: 0,5/6,5 | D18: - | E18: =ROUND(636*Belarus*(1-B25),2) -> 559.68 | F18: =ROUND(611*Belarus*(1-B25),2) -> 537.68 | G18: =ROUND(682*Belarus*(1-B25),2) -> 600.16 | H18: =ROUND(682*Belarus*(1-B25),2) -> 600.16 | I18: =ROUND(544*Belarus*(1-B25),2) -> 478.72 | J18: =ROUND(535*Belarus*(1-B25),2) -> 470.8 | K18: =ROUND(470*Belarus*(1-B25),2) -> 413.6 | L18: =ROUND(700*Belarus*(1-D25),2) -> 630 | M18: =ROUND(451*Belarus*(1-F25),2) -> 405.9 | N18: =ROUND(414*Belarus*(1-H25),2) -> 364.32 | O18: =ROUND(374*Belarus*(1-I25),2) -> 329.12 | P18: - | Q18: - | R18: - | S18: - | T18: =ROUND(342*Belarus*(1-N25),2) -> 300.96 | U18: - | V18: - | W18: - | X18: - | Y18: - | Z18: - | AA18: - | AB18: - | AC18: - | AD18: - | AE18: -
A19: Classic | B19: 1,183/1,1 | C19: 0,5/6,5 | D19: - | E19: =ROUND(621*Belarus*(1-B25),2) -> 546.48 | F19: =ROUND(596*Belarus*(1-B25),2) -> 524.48 | G19: =ROUND(667*Belarus*(1-B25),2) -> 586.96 | H19: =ROUND(667*Belarus*(1-B25),2) -> 586.96 | I19: =ROUND(529*Belarus*(1-B25),2) -> 465.52 | J19: =ROUND(520*Belarus*(1-B25),2) -> 457.6 | K19: =ROUND(455*Belarus*(1-B25),2) -> 400.4 | L19: =ROUND(685*Belarus*(1-D25),2) -> 616.5 | M19: =ROUND(436*Belarus*(1-F25),2) -> 392.4 | N19: =ROUND(399*Belarus*(1-H25),2) -> 351.12 | O19: =ROUND(359*Belarus*(1-I25),2) -> 315.92 | P19: - | Q19: - | R19: - | S19: - | T19: =ROUND(327*Belarus*(1-N25),2) -> 287.76 | U19: - | V19: - | W19: - | X19: - | Y19: - | Z19: - | AA19: - | AB19: - | AC19: - | AD19: - | AE19: -
A20: Modern | B20: 1,18/1,1 | C20: 0,5/6,5 | D20: - | E20: - | F20: - | G20: - | H20: - | I20: - | J20: - | K20: - | L20: - | M20: - | N20: - | O20: - | P20: - | Q20: - | R20: - | S20: - | T20: =ROUND(327*Belarus*(1-N25),2) -> 287.76 | U20: =ROUND(282*Belarus*(1-O25),2) -> 245.34 | V20: =ROUND(253*Belarus*(1-P25),2)&"*" -> 222,64* | W20: - | X20: - | Y20: - | Z20: - | AA20: - | AB20: - | AC20: - | AD20: - | AE20: -
A23: Ваша скидка | B23: Premium+Design | D23: PURAL®, PURAL МАTТ | F23: Polydexter® | H23: Drap® | I23: Satin® | J23: Optima | Q23: Дачный | R23: Цинк
J24: PE двс | K24: PE 0,8 | L24: PE 0,7 | M24: PE 0,65 | N24: PE 0,45 | O24: PE 0,4 | P24: PE 0,35 | Q24: PE | R24: 0.35 | S24: 0.4 | T24: 0.45 | U24: 0.5 | V24: 0.55 | W24: 0.7 | X24: 0.8 | Y24: 0.9
A25: Металлочерепица/Фальцевая кровля | B25: 0.12 | D25: 0.1 | F25: 0.1 | H25: 0.12 | I25: 0.12 | J25: - | K25: - | L25: 0 | M25: 0 | N25: 0.12 | O25: 0.13 | P25: 0.12 | Q25: 0 | R25: - | S25: 0 | T25: 0 | U25: - | V25: 0 | W25: 0 | X25: 0 | Y25: 0
A26: Профнастил | J26: 0 | K26: 0 | L26: 0 | M26: 0 | N26: 0 | O26: 0 | P26: 0 | Q26: 0 | R26: 0 | S26: 0 | T26: 0 | U26: 0 | V26: 0 | W26: 0 | X26: 0 | Y26: 0
A27: Плоский лист/отмотка/штрипс | J27: 0 | K27: 0 | L27: 0 | M27: 0 | N27: 0 | O27: 0 | P27: 0 | Q27: 0 | R27: 0 | S27: 0 | T27: 0 | U27: 0 | V27: 0 | W27: 0 | X27: 0 | Y27: 0
A28: Металлический сайдинг | J28: - | K28: - | L28: - | M28: - | N28: 0 | O28: - | P28: - | Q28: 0 | R28: - | S28: - | T28: - | U28: - | V28: - | W28: - | X28: - | Y28: -
A29: Софит | B29: 0 | R29: - | S29: - | T29: - | U29: - | V29: - | W29: - | X29: - | Y29: -
A30: Штактеник | B30: 0 | R30: - | S30: - | T30: - | U30: - | V30: - | W30: - | X30: - | Y30: -
